bitfinex/quotes_BTCUSD_20250418
["timestamp","ask_amount","ask_price","bid_price","bid_amount"]
[1744974270412,0.01185424,84358.0,84356.0,0.34]
[1744974271938,0.23709042,84356.0,84355.0,0.01755389]
[1744974272091,0.23708761,84357.0,84355.0,0.01755389]
[1744974272288,0.23708761,84357.0,84356.0,0.34]
[1744974272907,0.24893724,84359.0,84356.0,0.43483526]
[1744974273105,0.24893724,84359.0,84356.0,0.43483591]
[1744974273305,0.23708617,84358.0,84356.0,0.34]
[1744974273499,0.24894041,84358.0,84356.0,0.34]
[1744974273704,0.01185424,84358.0,84356.0,0.34]
[1744974273958,0.01185395,84360.0,84358.0,0.43483354]
[1744974274169,0.24893274,84361.0,84358.0,0.34]
[1744974274379,0.00177279,84360.0,84358.0,0.34]
[1744974274778,0.00177279,84360.0,84358.0,0.43483305]
[1744974275412,0.00177279,84360.0,84359.0,0.09483279]
[1744974275610,0.00177279,84360.0,84359.0,0.43483279]
[1744974275910,0.00177279,84361.0,84360.0,0.43483167]
[1744974276117,0.24892778,84362.0,84360.0,0.43483167]
[1744974276412,0.36937569,84362.0,84360.0,0.43483167]
[1744974276778,0.13230158,84362.0,84360.0,0.34]
[1744974276978,0.37115013,84362.0,84359.0,0.09483279]
[1744974277247,0.13230158,84362.0,84360.0,0.09483154]
[1744974277360,0.13407437,84362.0,84360.0,0.09483154]
[1744974279699,0.1222207,84362.0,84361.0,0.09483054]
[1744974279852,0.12044791,84362.0,84361.0,0.09483054]
[1744974281214,0.001,84362.0,84361.0,0.09483054]
[1744974285943,0.001,84362.0,84361.0,0.43483054]
[1744974286320,0.00020938,84362.0,84361.0,0.43583054]
[1744974291328,0.24891689,84366.0,84364.0,0.43482717]
[1744974291531,0.24912627,84366.0,84364.0,0.43482717]
[1744974293307,0.24912627,84366.0,84364.0,0.34]
[1744974294106,0.24912627,84366.0,84364.0,0.34868932]
[1744974294286,0.00020938,84366.0,84364.0,0.34868932]
[1744974294492,0.00020938,84366.0,84364.0,0.44351595]
[1744974294938,0.00020938,84366.0,84365.0,0.43482605]
[1744974301663,0.01362562,84368.0,84366.0,0.43482467]
[1744974301871,0.25089181,84368.0,84366.0,0.43482467]
[1744974302072,0.24911902,84368.0,84366.0,0.43482467]
[1744974302278,0.00177279,84367.0,84366.0,0.43482467]
[1744974303455,0.00198217,84368.0,84366.0,0.34]
[1744974303654,0.01185297,84367.0,84365.0,0.09482523]
[1744974303882,0.00177279,84366.0,84365.0,0.09482523]
[1744974304550,0.23883413,84367.0,84365.0,0.09482523]
[1744974304719,0.00177279,84366.0,84365.0,0.09482523]
[1744974306145,0.00177279,84367.0,84366.0,0.09482492]
[1744974306387,0.00198217,84368.0,84366.0,0.09482492]
[1744974307867,0.23706232,84366.0,84365.0,0.34]
[1744974308080,0.24911922,84368.0,84365.0,0.34]
[1744974308943,0.23706196,84367.0,84365.0,0.34]
[1744974309168,0.23883475,84367.0,84365.0,0.34]
[1744974310785,0.23706232,84366.0,84365.0,0.34]
[1744974316914,0.23706196,84367.0,84365.0,0.34]
[1744974317119,0.23706232,84366.0,84365.0,0.34]
[1744974321027,0.23883511,84366.0,84365.0,0.34]
[1744974322082,0.23706232,84366.0,84365.0,0.34]
[1744974322540,0.23883511,84366.0,84365.0,0.34]
[1744974324340,0.23706196,84367.0,84365.0,0.34]
[1744974324483,0.23706232,84366.0,84365.0,0.34]
[1744974325672,0.24911892,84368.0,84366.0,0.34]
[1744974325801,0.24911892,84368.0,84366.0,0.43482492]
[1744974326011,0.24911892,84368.0,84366.0,0.34]
[1744974327601,0.00020938,84368.0,84367.0,0.0948238]
[1744974327802,0.01206221,84368.0,84364.0,0.00868932]
[1744974328004,0.01206221,84368.0,84363.0,0.09482795]
[1744974328207,0.00020938,84368.0,84366.0,0.09482403]
[1744974328350,0.00020938,84368.0,84367.0,0.0948238]
[1744974331427,0.00606155,84368.0,84367.0,0.0948238]
[1744974331581,0.00020938,84368.0,84367.0,0.0948238]
[1744974331783,0.00599586,84368.0,84367.0,0.0948238]
[1744974331987,0.00041876,84368.0,84367.0,0.0948238]
[1744974332191,0.00620524,84368.0,84367.0,0.0948238]
[1744974335490,0.00041876,84368.0,84367.0,0.0948238]
[1744974335884,0.00620524,84368.0,84367.0,0.0948238]
[1744974336123,0.00041876,84368.0,84367.0,0.0948238]
[1744974336298,0.00620524,84368.0,84367.0,0.0948238]
[1744974336496,0.00041876,84368.0,84367.0,0.0948238]
[1744974337040,0.00620524,84368.0,84367.0,0.0948238]
[1744974337277,0.00041876,84368.0,84367.0,0.0948238]
[1744974337529,0.00620524,84368.0,84367.0,0.0948238]
[1744974337645,0.00041876,84368.0,84367.0,0.0948238]
[1744974338206,0.00620524,84368.0,84367.0,0.0948238]
[1744974351461,0.00599586,84368.0,84367.0,0.0948238]
[1744974361805,0.23701931,84382.0,84365.0,0.34]
[1744974362034,0.11944791,84381.0,84377.0,0.09481199]
[1744974362262,0.11944791,84383.0,84381.0,0.09480723]
[1744974362480,0.11944791,84383.0,84380.0,0.09480919]
[1744974362481,0.13129863,84383.0,84380.0,0.09480919]
[1744974362692,0.36831379,84383.0,84380.0,0.09480919]
[1744974362875,0.24886916,84382.0,84379.0,0.09480838]
[1744974363023,0.01185086,84382.0,84379.0,0.09480838]
[1744974363243,0.01185086,84382.0,84380.0,0.0948085]
[1744974363443,4.51e-05,84382.0,84381.0,0.09480807]
[1744974364461,4.51e-05,84382.0,84380.0,0.0948085]
[1744974364679,4.51e-05,84382.0,84379.0,0.09481021]
[1744974365175,0.01366875,84382.0,84379.0,0.09481021]
[1744974365402,0.25068837,84382.0,84379.0,0.09481021]
[1744974365593,0.24891558,84382.0,84379.0,0.09481021]
[1744974365913,0.01185129,84379.0,84376.0,0.09481317]
[1744974366146,0.01185129,84379.0,84377.0,0.09481197]
[1744974366379,0.01185114,84380.0,84378.0,0.09481048]
[1744974366938,0.24887573,84380.0,84377.0,0.09481197]
[1744974369431,0.00531608,84379.0,84377.0,0.09481197]
[1744974370203,0.01185143,84378.0,84375.0,0.0948138]
[1744974370425,0.00531441,84377.0,84376.0,0.09481316]
[1744974370647,0.01185129,84379.0,84376.0,0.09481316]
[1744974370861,0.00531301,84377.0,84376.0,0.09481316]
[1744974371073,0.01185129,84379.0,84376.0,0.09481316]
[1744974371218,0.00531301,84377.0,84376.0,0.09481316]
[1744974371432,0.24887787,84379.0,84376.0,0.09481316]
[1744974371658,0.00531301,84377.0,84375.0,0.0948138]
[1744974371889,0.01185143,84378.0,84375.0,0.0948138]
[1744974371890,0.24888128,84378.0,84375.0,0.0948138]
[1744974372093,0.00531218,84376.0,84375.0,0.0948138]
[1744974372260,0.24888128,84378.0,84375.0,0.0948138]
[1744974372468,0.00531218,84376.0,84375.0,0.0948138]
[1744974372832,0.00531218,84376.0,84368.0,0.34]
[1744974372833,0.23705389,84369.0,84368.0,0.34]
[1744974373066,0.01185255,84370.0,84368.0,0.34]
[1744974373218,0.24891136,84368.0,84365.0,0.0948251]
[1744974373424,0.00530736,84367.0,84366.0,0.09482399]
[1744974373825,0.24890658,84369.0,84367.0,0.09482357]
[1744974374467,0.01185269,84369.0,84367.0,0.09482357]
[1744974374938,0.24890424,84370.0,84368.0,0.09482268]
[1744974375087,0.01185255,84370.0,84368.0,0.09482268]
[1744974375286,0.24890611,84371.0,84368.0,0.09482268]
[1744974375800,0.00530988,84370.0,84369.0,0.09482155]
[1744974377179,0.24889794,84372.0,84370.0,0.09481999]
[1744974377384,0.00531072,84371.0,84370.0,0.09481999]
[1744974379753,0.01185213,84373.0,84371.0,0.09481868]
[1744974381027,0.01185157,84377.0,84369.0,0.01185269]
[1744974381246,0.01185157,84377.0,84375.0,0.09481406]
[1744974381464,0.23702907,84378.0,84375.0,0.09481372]
[1744974382220,0.24888394,84377.0,84375.0,0.09481372]
[1744974383255,0.24887783,84379.0,84377.0,0.09481256]
[1744974383484,0.24887783,84379.0,84376.0,0.09481285]
[1744974383485,0.23702888,84378.0,84376.0,0.09481285]
[1744974384126,0.24888031,84378.0,84375.0,0.09481467]
[1744974384364,0.01185143,84378.0,84375.0,0.09481467]
[1744974384997,0.01185143,84378.0,84376.0,0.09481271]
[1744974385492,0.24888093,84378.0,84375.0,0.09481467]
[1744974387141,0.24888093,84378.0,84376.0,0.0948135]
[1744974387541,0.24887749,84379.0,84376.0,0.0948135]
[1744974388982,0.23702905,84378.0,84376.0,0.0948135]
[1744974390801,0.00530939,84377.0,84376.0,0.0948135]
[1744974392562,0.01716096,84377.0,84372.0,0.06174261]
[1744974393014,0.01716096,84377.0,84374.0,0.09481257]
[1744974394424,0.25419382,84377.0,84374.0,0.09481257]
[1744974395078,0.01185171,84376.0,84374.0,0.09481566]
[1744974395568,0.00530771,84375.0,84374.0,0.09481566]
[1744974397395,0.00530771,84375.0,84373.0,0.09481669]
[1744974397607,0.25419679,84375.0,84372.0,0.06174261]
[1744974397825,0.01185213,84373.0,84370.0,0.09482031]
[1744974398276,0.00530368,84372.0,84370.0,0.09482031]
[1744974398647,0.00530368,84372.0,84371.0,0.0948193]
[1744974399194,0.24234914,84372.0,84370.0,0.09482031]
[1744974399413,0.00530368,84372.0,84370.0,0.09482031]
[1744974400492,0.01185241,84371.0,84369.0,0.09482122]
[1744974400629,0.24890288,84371.0,84368.0,0.09482167]
[1744974400824,0.00530059,84370.0,84368.0,0.09482167]
[1744974401472,0.00530059,84370.0,84369.0,0.09482155]
[1744974402268,0.24889774,84372.0,84370.0,0.09482035]
[1744974402570,0.00530059,84370.0,84369.0,0.09482155]
[1744974402868,0.00530059,84370.0,84364.0,0.02054997]
[1744974403208,0.01185227,84372.0,84370.0,0.09481964]
[1744974403592,0.2488958,84373.0,84371.0,0.0948193]
[1744974403916,0.23703124,84378.0,84374.0,0.09481584]
[1744974404240,0.24888682,84376.0,84373.0,0.09481691]
[1744974404454,0.23703782,84375.0,84373.0,0.09481691]
[1744974405869,0.00530394,84374.0,84373.0,0.09481691]
[1744974411178,0.01185171,84376.0,84374.0,0.09481537]
[1744974411457,0.0052712,84375.0,84374.0,0.09481537]
[1744974412016,0.24888503,84377.0,84374.0,0.09481537]
[1744974412219,0.00527204,84376.0,84374.0,0.09481537]
[1744974412734,0.00527204,84376.0,84375.0,0.43481481]
[1744974415860,0.24888043,84378.0,84375.0,0.43481481]
[1744974416037,0.00527288,84377.0,84375.0,0.43481481]
[1744974416354,0.00527288,84377.0,84376.0,0.09481369]
[1744974416517,0.00527288,84377.0,84376.0,0.43481369]
[1744974416729,0.00527288,84377.0,84376.0,0.34]
[1744974417140,0.24230429,84377.0,84376.0,0.34]
[1744974417747,0.24230429,84377.0,84375.0,0.43481481]
[1744974422340,0.00527288,84377.0,84375.0,0.43481481]
[1744974422541,0.24230467,84377.0,84375.0,0.43481481]
[1744974423584,0.00527288,84377.0,84375.0,0.43481481]
[1744974424524,0.00527288,84377.0,84376.0,0.09481369]
[1744974426472,0.00527288,84377.0,84376.0,0.43481369]
[1744974426946,0.011851,84381.0,84379.0,0.09481001]
[1744974427149,0.11944791,84380.0,84379.0,0.09481001]
[1744974429882,0.11944791,84380.0,84377.0,0.4348115]
[1744974430550,0.11944791,84380.0,84379.0,0.09481032]
[1744974431794,0.13129905,84380.0,84377.0,0.0948115]
[1744974431940,0.25065169,84379.0,84376.0,0.43481369]
[1744974432143,0.36832681,84379.0,84376.0,0.43481369]
[1744974432388,0.36832681,84379.0,84377.0,0.09481255]
[1744974432701,0.35647371,84379.0,84378.0,0.34]
[1744974433265,0.11944791,84379.0,84378.0,0.34]
[1744974433484,0.3582465,84379.0,84378.0,0.34]
[1744974433685,0.368325,84379.0,84376.0,0.43481338]
[1744974434237,0.368325,84379.0,84376.0,0.34]
[1744974434740,0.00177279,84378.0,84376.0,0.34]
[1744974435140,0.23703141,84377.0,84376.0,0.34]
[1744974435957,0.2423057,84377.0,84376.0,0.34]
[1744974436891,0.25415727,84377.0,84375.0,0.34]
[1744974439317,0.23703422,84376.0,84375.0,0.34]
[1744974439737,0.24230696,84376.0,84375.0,0.34]
[1744974440385,0.24888927,84375.0,84372.0,0.43481794]
[1744974440825,0.00527096,84374.0,84372.0,0.43481794]
[1744974441010,0.00527096,84374.0,84373.0,0.09481706]
[1744974442778,0.242311,84374.0,84372.0,0.09481791]
[1744974443002,0.00527096,84374.0,84373.0,0.09481706]
[1744974443659,0.00527096,84374.0,84372.0,0.09481791]
[1744974444669,0.00527096,84374.0,84373.0,0.09481706]
[1744974444880,0.00527096,84374.0,84373.0,0.43481706]
[1744974448696,0.24888646,84376.0,84373.0,0.43481706]
[1744974448978,0.23703711,84375.0,84373.0,0.43481706]
[1744974449268,0.23703711,84375.0,84373.0,0.09481706]
[1744974449473,0.00527096,84374.0,84373.0,0.09481706]
[1744974449812,0.24888646,84376.0,84373.0,0.09481706]
[1744974450012,0.00527002,84374.0,84373.0,0.09481706]
[1744974450274,0.24888646,84376.0,84373.0,0.09481706]
[1744974450435,0.00527002,84374.0,84373.0,0.09481706]
[1744974451084,0.24888646,84376.0,84373.0,0.09481706]
[1744974451779,0.00527086,84375.0,84373.0,0.09481706]
[1744974454223,0.00527086,84375.0,84374.0,0.09481593]
[1744974455798,0.24888815,84377.0,84374.0,0.09481593]
[1744974456009,0.00527086,84375.0,84374.0,0.09481593]
[1744974456228,0.24888815,84377.0,84374.0,0.09481593]
[1744974456434,0.00527086,84375.0,84374.0,0.09481593]
[1744974456632,0.24888815,84377.0,84374.0,0.09481593]
[1744974456840,0.00527086,84375.0,84374.0,0.09481593]
[1744974457039,0.24888815,84377.0,84374.0,0.09481593]
[1744974457250,0.00527086,84375.0,84374.0,0.09481593]
[1744974457412,0.24888815,84377.0,84374.0,0.09481593]
[1744974457613,0.00527086,84375.0,84374.0,0.09481593]
[1744974457812,0.24888815,84377.0,84374.0,0.09481593]
[1744974458060,0.00527086,84375.0,84374.0,0.09481593]
[1744974458232,0.24888815,84377.0,84374.0,0.09481593]
[1744974458431,0.00527086,84375.0,84374.0,0.09481593]
[1744974458948,0.24888815,84377.0,84374.0,0.09481593]
[1744974459147,0.00527086,84375.0,84374.0,0.09481593]
[1744974459345,0.24888815,84377.0,84374.0,0.09481593]
[1744974459548,0.00527086,84375.0,84374.0,0.09481593]
[1744974459750,0.24888815,84377.0,84374.0,0.09481593]
[1744974459970,0.00527086,84375.0,84374.0,0.09481593]
[1744974460159,0.24888815,84377.0,84374.0,0.09481593]
[1744974460319,0.00527086,84375.0,84374.0,0.09481593]
[1744974460525,0.24888815,84377.0,84374.0,0.09481593]
[1744974460880,0.00527086,84375.0,84374.0,0.09481593]
[1744974461038,0.24888815,84377.0,84374.0,0.09481593]
[1744974461239,0.00527086,84375.0,84374.0,0.09481593]
[1744974461441,0.24888815,84377.0,84374.0,0.09481593]
[1744974461625,0.00527086,84375.0,84374.0,0.09481593]
[1744974461825,0.24888815,84377.0,84374.0,0.09481593]
[1744974462059,0.00527086,84375.0,84374.0,0.09481593]
[1744974462279,0.24888815,84377.0,84375.0,0.43481459]
[1744974464135,0.01185157,84377.0,84375.0,0.43481397]
[1744974464420,0.24888304,84377.0,84375.0,0.43481397]
[1744974465571,0.24883563,84377.0,84375.0,0.43481397]
[1744974465929,0.00527169,84376.0,84374.0,0.09481593]
[1744974467140,0.00527169,84376.0,84375.0,0.09481397]
[1744974468183,0.00527169,84376.0,84374.0,0.09481593]
[1744974468457,0.00527169,84376.0,84375.0,0.09481481]
[1744974469060,0.01185143,84378.0,84376.0,0.09481322]
[1744974470519,0.36832588,84379.0,84376.0,0.09481322]
[1744974471501,0.36832588,84379.0,84377.0,0.4348124]
[1744974472009,0.36832588,84379.0,84377.0,0.34]
[1744974472498,0.36832588,84379.0,84377.0,0.43481237]
[1744974472642,0.36832588,84379.0,84377.0,0.34]
[1744974472845,0.24888003,84378.0,84376.0,0.34]
[1744974474106,0.24888003,84378.0,84375.0,0.43481454]
[1744974474834,0.23703356,84377.0,84375.0,0.34]
[1744974475920,0.24888593,84376.0,84374.0,0.34]
[1744974477537,0.24888888,84375.0,84372.0,0.09481614]
[1744974477836,0.2488894,84375.0,84373.0,0.09481696]
[1744974479310,0.2488894,84375.0,84372.0,0.09481818]
[1744974479672,0.01185185,84375.0,84373.0,0.09481706]
[1744974480436,0.24888919,84375.0,84370.0,0.09482043]
[1744974480575,0.24888919,84375.0,84372.0,0.09481706]
[1744974480779,0.00526681,84374.0,84372.0,0.09481706]
[1744974485145,0.24230671,84374.0,84372.0,0.09481706]
[1744974486339,0.00526681,84374.0,84372.0,0.09481706]
[1744974486620,0.2423073,84374.0,84372.0,0.09481706]
[1744974487904,0.01185213,84373.0,84371.0,0.0948192]
[1744974488407,0.0052637,84372.0,84371.0,0.0948192]
[1744974489187,0.24889248,84374.0,84371.0,0.0948192]
[1744974489519,0.00526312,84372.0,84371.0,0.4348192]
[1744974490058,0.24889248,84374.0,84372.0,0.0948181]
[1744974490409,0.24889248,84374.0,84370.0,0.34]
[1744974491410,0.24889248,84374.0,84371.0,0.0948193]
[1744974491814,0.24890273,84371.0,84368.0,0.34]
[1744974492037,0.24889695,84373.0,84370.0,0.09482043]
[1744974492235,0.23704678,84372.0,84370.0,0.09482043]
[1744974492436,0.24889695,84373.0,84370.0,0.09481973]
[1744974492846,0.24889695,84373.0,84370.0,0.43481973]
[1744974493893,0.01185213,84373.0,84371.0,0.43481885]
[1744974494099,0.01185213,84373.0,84371.0,0.09481885]
[1744974495758,0.00526312,84372.0,84371.0,0.09481885]
[1744974496469,0.00526312,84372.0,84370.0,0.43481973]
[1744974497962,0.24889248,84374.0,84372.0,0.09481809]
[1744974499173,0.24889248,84374.0,84371.0,0.0948193]
[1744974499745,0.24889248,84374.0,84370.0,0.34]
[1744974499746,0.24888634,84376.0,84370.0,0.34]
[1744974499955,0.01185157,84377.0,84374.0,0.09481571]
[1744974500153,0.23703703,84375.0,84373.0,0.34]
[1744974501272,0.24888593,84376.0,84373.0,0.43481701]
[1744974503099,0.23703711,84375.0,84373.0,0.43481701]
[1744974503951,0.24888593,84376.0,84373.0,0.43481701]
[1744974504255,0.01185171,84376.0,84373.0,0.43481701]
[1744974504447,0.24888322,84377.0,84374.0,0.43481573]
[1744974504656,0.24888322,84377.0,84374.0,0.09481573]
[1744974505035,0.01185157,84377.0,84375.0,0.43481441]
[1744974505968,0.24888386,84377.0,84375.0,0.43481441]
[1744974506831,0.24888206,84378.0,84375.0,0.43481441]
[1744974507244,0.23703142,84377.0,84375.0,0.43481441]
[1744974507635,0.24888206,84378.0,84375.0,0.43481441]
[1744974507852,0.01185143,84378.0,84376.0,0.43481363]
[1744974508064,0.01185143,84378.0,84376.0,0.34]
[1744974508671,0.24888048,84378.0,84376.0,0.34]
[1744974508982,0.24888048,84378.0,84376.0,0.09481327]
[1744974510885,0.00527037,84377.0,84376.0,0.09481327]
[1744974511117,0.00527037,84377.0,84376.0,0.43481327]
[1744974511272,4.51e-05,84382.0,84381.0,0.43480807]
[1744974519081,0.005351,84382.0,84381.0,0.43480807]
[1744974519282,4.51e-05,84382.0,84381.0,0.34]
[1744974519636,0.23706247,84382.0,84381.0,0.34]
[1744974519836,0.24236837,84382.0,84381.0,0.34]
[1744974523262,0.25421923,84382.0,84380.0,0.34]
[1744974523402,0.23702018,84381.0,84380.0,0.34]
[1744974523810,0.24236152,84381.0,84380.0,0.34]
[1744974524377,0.23703141,84377.0,84376.0,0.001]
[1744974524692,0.2423694,84377.0,84376.0,0.001]
[1744974525538,0.00533799,84377.0,84376.0,0.001]
[1744974525838,0.23703141,84377.0,84376.0,0.001]
[1744974526037,0.2423694,84377.0,84376.0,0.001]
[1744974530681,0.24121105,84377.0,84376.0,0.001]
[1744974531235,0.24121105,84377.0,84375.0,0.34]
[1744974531743,0.00484982,84377.0,84376.0,0.09481369]
[1744974531918,0.24188123,84377.0,84375.0,0.34]
[1744974532605,0.23703422,84376.0,84375.0,0.34]
[1744974532807,0.00484898,84376.0,84375.0,0.34]
[1744974533843,0.00484898,84376.0,84375.0,0.43481481]
[1744974534475,0.00482315,84376.0,84375.0,0.43481481]
[1744974537121,4.51e-05,84382.0,84381.0,0.43480807]
[1744974537520,0.00476995,84382.0,84381.0,0.43480807]
[1744974537679,4.51e-05,84382.0,84381.0,0.43480807]
[1744974537883,0.00476995,84382.0,84381.0,0.43480807]
[1744974546359,0.00476995,84382.0,84381.0,0.34]
[1744974546558,0.00476995,84382.0,84381.0,0.43480807]
[1744974549198,0.00476995,84382.0,84381.0,0.34]
[1744974550337,0.25363818,84382.0,84380.0,0.34]
[1744974550690,0.01662081,84382.0,84380.0,0.34]
[1744974550895,0.23702018,84381.0,84380.0,0.34]
[1744974551302,0.24135876,84381.0,84380.0,0.34]
[1744974551704,0.01185157,84377.0,84375.0,0.34]
[1744974551943,0.24888542,84377.0,84375.0,0.34]
[1744974552149,0.00433438,84376.0,84375.0,0.34]
[1744974552365,0.24353579,84376.0,84375.0,0.34]
[1744974553371,0.24353579,84376.0,84374.0,0.43481574]
[1744974555455,0.00650157,84376.0,84374.0,0.43481574]
[1744974555830,0.01185185,84375.0,84372.0,0.43481788]
[1744974555994,0.00636104,84374.0,84372.0,0.43481788]
[1744974556189,0.00636104,84374.0,84373.0,0.09481635]
[1744974556446,0.23704265,84373.0,84372.0,0.34]
[1744974556904,0.25525456,84373.0,84370.0,0.43482039]
[1744974557506,0.00635978,84373.0,84372.0,0.09481818]
[1744974557708,0.01821191,84373.0,84371.0,0.43481837]
[1744974557931,0.01185227,84372.0,84370.0,0.09482017]
[1744974558340,0.00635727,84371.0,84370.0,0.09482017]
[1744974559359,0.01185199,84374.0,84370.0,0.09482017]
[1744974559659,0.24889448,84375.0,84370.0,0.09482017]
[1744974559800,0.00635978,84373.0,84372.0,0.09481818]
[1744974560005,0.24889448,84375.0,84373.0,0.43481665]
[1744974560247,0.00636104,84374.0,84373.0,0.43481665]
[1744974561267,0.00636104,84374.0,84373.0,0.34]
[1744974561678,0.00636104,84374.0,84373.0,0.43481706]
[1744974562828,0.00636104,84374.0,84373.0,0.34]
[1744974563238,0.00636104,84374.0,84373.0,0.43481706]
[1744974563562,0.24888826,84377.0,84374.0,0.09481544]
[1744974563765,0.24887414,84380.0,84376.0,0.43481369]
[1744974563967,0.01185129,84379.0,84376.0,0.43481369]
[1744974564284,0.24887937,84379.0,84376.0,0.43481369]
[1744974564908,0.24887937,84379.0,84377.0,0.09481243]
[1744974565935,0.24887937,84379.0,84376.0,0.09481369]
[1744974565936,0.24887122,84381.0,84378.0,0.43481144]
[1744974566978,0.23702356,84380.0,84378.0,0.09481144]
[1744974568811,0.11949301,84382.0,84375.0,0.01185185]
[1744974568997,0.36836226,84382.0,84379.0,0.09480956]
[1744974569241,0.01185114,84380.0,84378.0,0.09481119]
[1744974569436,0.24887341,84381.0,84379.0,0.09481029]
[1744974569837,0.24887341,84381.0,84378.0,0.09481119]
[1744974570682,0.00636859,84380.0,84379.0,0.09481032]
[1744974570846,0.00636859,84380.0,84378.0,0.09481119]
[1744974571049,0.00636859,84380.0,84379.0,0.09481032]
[1744974571250,0.11949301,84382.0,84381.0,0.09480807]
[1744974571488,0.35651038,84382.0,84380.0,0.34]
[1744974572066,0.23702018,84381.0,84380.0,0.34]
[1744974572469,4.51e-05,84382.0,84381.0,0.09480807]
[1744974573416,4.51e-05,84382.0,84380.0,0.09480919]
[1744974573592,4.51e-05,84382.0,84381.0,0.09480807]
[1744974573793,4.51e-05,84382.0,84380.0,0.09480919]
[1744974573998,4.51e-05,84382.0,84381.0,0.09480807]
[1744974574207,0.01189596,84382.0,84379.0,0.43481027]
[1744974574636,4.51e-05,84382.0,84379.0,0.43481027]
[1744974574771,0.24891455,84382.0,84379.0,0.43481027]
[1744974575171,0.01189596,84382.0,84379.0,0.43481027]
[1744974577019,4.51e-05,84382.0,84381.0,0.09480807]
[1744974580151,4.51e-05,84382.0,84381.0,0.09717802]
[1744974581554,4.51e-05,84382.0,84381.0,0.43717802]
[1744974581750,4.51e-05,84382.0,84381.0,0.43580807]
[1744974587982,0.0008428,84396.0,84395.0,0.09479234]
[1744974588193,0.0012943,84396.0,84395.0,0.09479234]
[1744974588677,0.00776556,84396.0,84395.0,0.09479234]
[1744974589709,0.0008426,84400.0,84399.0,0.43478785]
[1744974589905,0.00088772,84400.0,84399.0,0.43478785]
[1744974590105,4.332e-05,84410.0,84408.0,0.09477774]
[1744974590306,8.842e-05,84410.0,84409.0,0.00236907]
[1744974590513,8.842e-05,84410.0,84408.0,0.09477774]
[1744974590799,0.0008424,84423.0,84408.0,0.09477774]
[1744974590800,0.0008424,84423.0,84422.0,0.09476202]
[1744974591116,0.00661472,84423.0,84422.0,0.09476202]
[1744974592528,0.00661472,84423.0,84422.0,0.09713083]
[1744974592686,0.0008424,84423.0,84422.0,0.09713083]
[1744974592893,0.0008424,84423.0,84422.0,0.09713079]
[1744974593128,0.0008424,84423.0,84422.0,0.43713079]
[1744974593330,0.0008875,84423.0,84422.0,0.43476202]
[1744974594766,0.0008875,84423.0,84422.0,0.44578687]
[1744974598773,0.0008875,84423.0,84422.0,0.44678687]
[1744974599148,0.0008422,84432.0,84431.0,0.09475192]
[1744974599413,0.0008873,84432.0,84431.0,0.09712043]
[1744974599615,0.0008873,84432.0,84431.0,0.09475192]
[1744974599833,0.0008873,84432.0,84431.0,0.44814528]
[1744974600046,0.0008873,84432.0,84431.0,0.44577677]
[1744974601839,0.0008873,84432.0,84431.0,0.57709677]
[1744974602351,0.0008873,84432.0,84431.0,0.57809677]
[1744974606994,0.0008873,84432.0,84431.0,0.44677677]
[1744974607407,0.00695928,84432.0,84431.0,0.44677677]
[1744974607541,0.0008873,84432.0,84431.0,0.44677677]
[1744974607924,0.00695928,84432.0,84431.0,0.44677677]
[1744974608082,0.0008873,84432.0,84431.0,0.44677677]
[1744974608281,0.0008873,84432.0,84431.0,0.43575192]
[1744974608451,0.00695928,84432.0,84431.0,0.43575192]
[1744974610008,0.0008873,84432.0,84431.0,0.43575192]
[1744974610209,0.0008873,84432.0,84431.0,0.09575192]
[1744974612332,0.01184258,84441.0,84438.0,0.43474304]
[1744974612630,0.01188768,84441.0,84438.0,0.43474304]
[1744974612774,0.00613851,84440.0,84438.0,0.43474304]
[1744974613434,0.00613851,84440.0,84438.0,0.09474304]
[1744974614102,0.00613851,84440.0,84439.0,0.09474284]
[1744974614300,0.00613851,84440.0,84437.0,0.43474516]
[1744974614525,0.25483739,84440.0,84437.0,0.43474516]
[1744974617161,0.25483739,84440.0,84437.0,0.34]
[1744974617668,0.01184286,84439.0,84436.0,0.09474613]
[1744974617965,0.006136,84438.0,84437.0,0.09474519]
[1744974618582,0.01288768,84441.0,84438.0,0.09474306]
[1744974618789,0.24973957,84441.0,84438.0,0.09474306]
[1744974619675,0.0010451,84441.0,84440.0,0.09474182]
[1744974619858,0.0010451,84441.0,84440.0,0.43474182]
[1744974621387,0.0010451,84441.0,84440.0,0.09474182]
[1744974624739,0.0010451,84441.0,84439.0,0.0947429]
[1744974625481,0.237897,84441.0,84439.0,0.0947429]
[1744974625600,0.24973958,84441.0,84439.0,0.0947429]
[1744974625953,0.00614943,84440.0,84439.0,0.4347429]
[1744974626371,0.00614943,84440.0,84439.0,0.43474295]
[1744974626583,0.00614943,84440.0,84439.0,0.34]
[1744974626877,0.00614943,84440.0,84439.0,0.43474295]
[1744974628723,0.00614943,84440.0,84439.0,0.34]
[1744974629075,0.00614943,84440.0,84439.0,0.43474295]
[1744974629391,0.00614943,84440.0,84439.0,0.34]
[1744974630725,0.243004,84440.0,84439.0,0.34]
[1744974631411,0.2469484,84440.0,84439.0,0.34]
[1744974633253,0.01009383,84440.0,84439.0,0.34]
[1744974633470,0.2469484,84440.0,84439.0,0.34]
[1744974634228,0.01009383,84440.0,84439.0,0.34]
[1744974635440,0.2469484,84440.0,84439.0,0.34]
[1744974638154,0.01009383,84440.0,84439.0,0.34]
[1744974638467,0.2469484,84440.0,84439.0,0.34]
[1744974638916,0.2469484,84440.0,84439.0,0.34908682]
[1744974640636,0.2469484,84440.0,84439.0,0.34]
[1744974642730,0.2479484,84440.0,84439.0,0.34]
[1744974649292,0.01109383,84440.0,84439.0,0.34]
[1744974649593,0.01109383,84440.0,84439.0,0.43474295]
[1744974651257,0.01009383,84440.0,84439.0,0.43474295]
[1744974651456,0.01009383,84440.0,84439.0,0.09474295]
[1744974654119,1e-08,84441.0,84440.0,0.09474182]
[1744974654322,1e-08,84441.0,84440.0,0.43474182]
[1744974654524,1e-08,84441.0,84440.0,0.43574182]
[1744974654853,1e-08,84441.0,84440.0,0.44682106]
[1744974655810,0.00396001,84449.0,84448.0,0.09473285]
[1744974656171,0.00396001,84449.0,84448.0,0.44581209]
[1744974661971,0.01179753,84449.0,84448.0,0.43473285]
[1744974662294,0.00396001,84449.0,84448.0,0.43473285]
[1744974664248,0.00396001,84449.0,84448.0,0.44579476]
[1744974666208,0.00396001,84449.0,84448.0,0.44679476]
[1744974668192,0.00396001,84449.0,84448.0,0.43573285]
[1744974685763,0.00396001,84449.0,84448.0,0.44679897]
[1744974686672,0.0008418,84457.0,84456.0,0.09472387]
[1744974686996,0.0008418,84457.0,84456.0,0.09709165]
[1744974687197,0.0008418,84457.0,84456.0,0.09472387]
[1744974687944,0.0008418,84457.0,84456.0,0.09709164]
[1744974688069,0.0008418,84457.0,84456.0,0.44815776]
[1744974688274,0.0008418,84457.0,84456.0,0.44578999]